[Event "The Kvibergspelen 2023"]
[Site "Kviberg Park Hotel & Conference, Krutvagen 2, Gothenburg, Sweden"]
[Date "2023.09.16"]
[Round "6.17"]
[White "Hamark, Jesper"]
[Black "Nilsson, Oliver"]
[Result "1-0"]
[TimeControl "15 minutes + 5 seconds per move from move one (Round 1 - 4) / 90 minutes + 30 seconds per move from move one (Round 5 - 8)"]
[WhiteFideId "1704338"]
[BlackFideId "1730177"]
[WhiteElo "2342"]
[BlackElo "1924"]

1. e4 {[%clk 01:30:57]} {[%emt 00:00:03]} e5 {[%clk 01:29:36]} {[%emt
00:01:17]} 2. d4 {[%clk 01:30:52]} {[%emt 00:00:42]} exd4 {[%clk 01:29:53]}
{[%emt 00:00:14]} 3. Nf3 {[%clk 01:31:16]} {[%emt 00:00:05]} Nc6 {[%clk
01:30:20]} {[%emt 00:00:03]} 4. Bc4 {[%clk 01:31:38]} {[%emt 00:00:09]} Nf6
{[%clk 01:30:46]} {[%emt 00:00:04]} 5. e5 {[%clk 01:32:02]} {[%emt 00:00:05]}
Ne4 {[%clk 01:31:03]} {[%emt 00:00:13]} 6. Qe2 {[%clk 01:32:23]} {[%emt
00:00:10]} Nc5 {[%clk 01:31:28]} {[%emt 00:00:05]} 7. O-O {[%clk 01:31:50]}
{[%emt 00:01:02]} Be7 {[%clk 01:31:31]} {[%emt 00:00:26]} 8. c3 {[%clk
01:28:33]} {[%emt 00:03:48]} d3 {[%clk 01:31:11]} {[%emt 00:00:50]} 9. Qe3
{[%clk 01:28:10]} {[%emt 00:00:53]} O-O {[%clk 01:31:22]} {[%emt 00:00:19]} 10.
b4 {[%clk 01:26:49]} {[%emt 00:01:51]} Ne6 {[%clk 01:31:45]} {[%emt 00:00:07]}
11. Rd1 {[%clk 01:25:12]} {[%emt 00:02:07]} d6 {[%clk 01:30:34]} {[%emt
00:01:41]} 12. Rxd3 {[%clk 01:24:10]} {[%emt 00:01:32]} Bd7 {[%clk 01:29:00]}
{[%emt 00:02:03]} 13. Na3 {[%clk 01:16:52]} {[%emt 00:07:48]} Nxe5 {[%clk
01:21:30]} {[%emt 00:08:00]} 14. Nxe5 {[%clk 01:16:38]} {[%emt 00:00:45]} dxe5
{[%clk 01:21:55]} {[%emt 00:00:06]} 15. Bxe6 {[%clk 01:00:47]} {[%emt
00:16:19]} fxe6 {[%clk 01:22:17]} {[%emt 00:00:09]} 16. Nc4 {[%clk 01:00:56]}
{[%emt 00:00:22]} Bg5 {[%clk 01:07:52]} {[%emt 00:14:54]} 17. Qe1 {[%clk
00:41:06]} {[%emt 00:20:19]} Bf6 {[%clk 00:48:12]} {[%emt 00:20:10]} 18. Nxe5
{[%clk 00:35:46]} {[%emt 00:05:51]} Bxe5 {[%clk 00:47:44]} {[%emt 00:00:58]} 19.
Qxe5 {[%clk 00:36:11]} {[%emt 00:00:06]} Rf5 {[%clk 00:47:57]} {[%emt
00:00:16]} 20. Qg3 {[%clk 00:35:17]} {[%emt 00:01:23]} Rc8 {[%clk 00:23:50]}
{[%emt 00:24:38]} 21. Bh6 {[%clk 00:28:48]} {[%emt 00:06:58]} Rf7 {[%clk
00:19:25]} {[%emt 00:04:56]} 22. Rad1 {[%clk 00:28:41]} {[%emt 00:00:37]} Qe8
{[%clk 00:19:09]} {[%emt 00:00:45]} 23. Bf4 {[%clk 00:27:28]} {[%emt 00:01:43]}
c5 {[%clk 00:18:43]} {[%emt 00:00:57]} 24. bxc5 {[%clk 00:27:06]} {[%emt
00:00:52]} Rxc5 {[%clk 00:18:20]} {[%emt 00:00:53]} 25. Be5 {[%clk 00:27:17]}
{[%emt 00:00:18]} Rd5 {[%clk 00:11:24]} {[%emt 00:07:26]} 26. h4 {[%clk
00:26:50]} {[%emt 00:00:57]} Bc6 {[%clk 00:10:27]} {[%emt 00:01:27]} 27. f3
{[%clk 00:25:20]} {[%emt 00:02:01]} Qe7 {[%clk 00:09:03]} {[%emt 00:01:54]} 28.
Rxd5 {[%clk 00:23:07]} {[%emt 00:02:42]} Bxd5 {[%clk 00:09:22]} {[%emt
00:00:12]} 29. Rd4 {[%clk 00:22:51]} {[%emt 00:00:47]} b5 {[%clk 00:06:24]}
{[%emt 00:03:27]} 30. a4 {[%clk 00:16:03]} {[%emt 00:07:19]} a6 {[%clk
00:06:07]} {[%emt 00:00:46]} 31. axb5 {[%clk 00:15:23]} {[%emt 00:01:10]} axb5
{[%clk 00:06:32]} {[%emt 00:00:05]} 32. Kh2 {[%clk 00:15:17]} {[%emt 00:00:36]}
Qb7 {[%clk 00:04:15]} {[%emt 00:02:47]} 33. Rg4 {[%clk 00:15:08]} {[%emt
00:00:38]} Qd7 {[%clk 00:03:04]} {[%emt 00:01:41]} 34. Bd4 {[%clk 00:14:26]}
{[%emt 00:01:13]} Qc7 {[%clk 00:02:27]} {[%emt 00:01:07]} 35. Be5 {[%clk
00:14:49]} {[%emt 00:00:06]} Qd7 {[%clk 00:02:50]} {[%emt 00:00:07]} 36. Rg5
{[%clk 00:15:04]} {[%emt 00:00:16]} Qb7 {[%clk 00:02:19]} {[%emt 00:01:00]} 37.
h5 {[%clk 00:14:46]} {[%emt 00:00:48]} h6 {[%clk 00:01:27]} {[%emt 00:01:22]}
38. Rg6 {[%clk 00:15:04]} {[%emt 00:00:12]} Kf8 {[%clk 00:00:44]} {[%emt
00:01:14]} 39. Qg4 {[%clk 00:12:56]} {[%emt 00:02:38]} Qe7 {[%clk 00:00:34]}
{[%emt 00:00:40]} 40. Kh3 {[%clk 00:10:41]} {[%emt 00:02:45]} Qd7 {[%clk
00:00:34]} {[%emt 00:00:31]} 41. Qd4 {[%clk 00:09:09]} {[%emt 00:02:01]} Kg8
{[%clk 00:00:33]} {[%emt 00:00:31]} 42. Qh4 {[%clk 00:07:44]} {[%emt 00:01:54]}
Qe7 {[%clk 00:00:34]} {[%emt 00:00:30]} 43. Qg3 {[%clk 00:07:54]} {[%emt
00:00:20]} Qb7 {[%clk 00:00:33]} {[%emt 00:00:31]} 44. Kh2 {[%clk 00:04:54]}
{[%emt 00:03:30]} Kf8 {[%clk 00:00:53]} {[%emt 00:00:10]} 45. Bd6+ {[%clk
00:04:25]} {[%emt 00:00:59]} Ke8 {[%clk 00:01:13]} {[%emt 00:00:10]} 46. Rxh6
{[%clk 00:03:57]} {[%emt 00:00:58]} gxh6 {[%clk 00:00:57]} {[%emt 00:00:46]} 47.
Qg8+ {[%clk 00:04:17]} {[%emt 00:00:10]} Kd7 {[%clk 00:01:18]} {[%emt
00:00:09]} 48. Qxf7+ {[%clk 00:04:41]} {[%emt 00:00:06]} Kxd6 {[%clk 00:01:40]}
{[%emt 00:00:08]} 49. Qf4+ {[%clk 00:05:08]} {[%emt 00:00:03]} Kc6 {[%clk
00:01:08]} {[%emt 00:01:02]} 50. Qxh6 {[%clk 00:05:33]} {[%emt 00:00:05]} Qc7+
{[%clk 00:00:38]} {[%emt 00:01:00]} 51. Kg1 {[%clk 00:02:23]} {[%emt 00:03:39]}
Qg3 {[%clk 00:00:40]} {[%emt 00:00:28]} 52. Qe3 {[%clk 00:02:46]} {[%emt
00:00:07]} Qg7 {[%clk 00:00:32]} {[%emt 00:00:38]} 53. g4 {[%clk 00:02:23]}
{[%emt 00:00:54]} Qc7 {[%clk 00:00:33]} {[%emt 00:00:29]} 54. Kg2 {[%clk
00:02:38]} {[%emt 00:00:14]} Qg7 {[%clk 00:00:43]} {[%emt 00:00:19]} 55. Kg3
{[%clk 00:02:28]} {[%emt 00:00:42]} Qc7+ {[%clk 00:00:33]} {[%emt 00:00:40]} 56.
Kh3 {[%clk 00:02:29]} {[%emt 00:00:28]} Qf7 {[%clk 00:00:34]} {[%emt 00:00:30]}
57. Kg2 {[%clk 00:00:55]} {[%emt 00:02:04]} Qh7 {[%clk 00:00:53]} {[%emt
00:00:11]} 58. h6 {[%clk 00:01:08]} {[%emt 00:00:17]} Qg6 {[%clk 00:00:44]}
{[%emt 00:00:40]} 59. Kg3 {[%clk 00:01:24]} {[%emt 00:00:14]} Qf7 {[%clk
00:00:35]} {[%emt 00:00:37]} 60. Qf4 {[%clk 00:01:38]} {[%emt 00:00:17]} Qg6
{[%clk 00:00:33]} {[%emt 00:00:32]} 61. Kh4 {[%clk 00:01:08]} {[%emt 00:01:00]}
e5 {[%clk 00:00:33]} {[%emt 00:00:30]} 62. Qg5 {[%clk 00:00:46]} {[%emt
00:00:51]} Qc2 {[%clk 00:00:36]} {[%emt 00:00:27]} 63. Qf6+ {[%clk 00:00:53]}
{[%emt 00:00:23]} Kd7 {[%clk 00:00:31]} {[%emt 00:00:36]} 64. Qxe5 {[%clk
00:01:03]} {[%emt 00:00:19]} Qf2+ {[%clk 00:00:37]} {[%emt 00:00:24]} 65. Kg5
{[%clk 00:00:48]} {[%emt 00:00:45]} Qxf3 {[%clk 00:00:32]} {[%emt 00:00:36]} 66.
h7 {[%clk 00:00:54]} {[%emt 00:00:24]} Be6 {[%clk 00:00:45]} {[%emt 00:00:18]}
67. Qd4+ {[%clk 00:01:02]} {[%emt 00:00:22]} Ke7 {[%clk 00:00:33]} {[%emt
00:00:41]} 68. h8=Q {[%clk 00:00:54]} {[%emt 00:00:38]} 1-0

[Event "The Kvibergspelen 2023"]
[Site "Kviberg Park Hotel & Conference, Krutvagen 2, Gothenburg, Sweden"]
[Date "2023.09.16"]
[Round "6.18"]
[White "Strom-Engdahl, Alexander"]
[Black "Havner, Arvid"]
[Result "1-0"]
[TimeControl "15 minutes + 5 seconds per move from move one (Round 1 - 4) / 90 minutes + 30 seconds per move from move one (Round 5 - 8)"]
[WhiteFideId "1741586"]
[BlackFideId "1769308"]
[WhiteElo "2164"]
[BlackElo "1876"]

1. e4 {[%clk 01:30:13]} {[%emt 00:00:46]} c5 {[%clk 01:29:16]} {[%emt
00:01:45]} 2. Nf3 {[%clk 01:30:37]} {[%emt 00:00:06]} d6 {[%clk 01:29:35]}
{[%emt 00:00:10]} 3. Bb5+ {[%clk 01:31:02]} {[%emt 00:00:06]} Bd7 {[%clk
01:29:56]} {[%emt 00:00:10]} 4. Bxd7+ {[%clk 01:31:26]} {[%emt 00:00:06]} Nxd7
{[%clk 01:30:19]} {[%emt 00:00:07]} 5. O-O {[%clk 01:31:49]} {[%emt 00:00:06]}
Ngf6 {[%clk 01:30:31]} {[%emt 00:00:19]} 6. Qe2 {[%clk 01:32:14]} {[%emt
00:00:05]} e6 {[%clk 01:28:32]} {[%emt 00:02:29]} 7. c3 {[%clk 01:32:10]}
{[%emt 00:00:33]} Be7 {[%clk 01:28:31]} {[%emt 00:00:31]} 8. d4 {[%clk
01:32:04]} {[%emt 00:00:36]} O-O {[%clk 01:28:18]} {[%emt 00:00:43]} 9. Rd1
{[%clk 01:30:42]} {[%emt 00:01:51]} Qc7 {[%clk 01:25:24]} {[%emt 00:03:26]} 10.
Bg5 {[%clk 01:28:01]} {[%emt 00:03:11]} Rfd8 {[%clk 01:18:42]} {[%emt
00:07:11]} 11. a4 {[%clk 01:15:29]} {[%emt 00:13:03]} Rac8 {[%emt 00:11:46]} 12.
Na3 {[%clk 01:13:10]} a6 {[%clk 01:08:39]} {[%emt 00:02:04]} 13. e5 {[%clk
01:00:01]} {[%emt 00:13:39]} dxe5 {[%clk 00:52:38]} {[%emt 00:16:32]} 14. dxe5
{[%clk 00:59:43]} {[%emt 00:00:47]} Nd5 {[%emt 00:03:12]} 15. Rxd5 {[%clk
00:48:45]} {[%emt 00:10:46]} exd5 {[%clk 00:50:36]} {[%emt 00:00:32]} 16. Bxe7
{[%clk 00:49:09]} {[%emt 00:00:06]} Re8 {[%clk 00:51:04]} {[%emt 00:00:02]} 17.
Bh4 {[%clk 00:47:34]} {[%emt 00:02:04]} Nxe5 {[%clk 00:47:47]} {[%emt
00:03:48]} 18. Nxe5 {[%clk 00:39:12]} {[%emt 00:08:53]} Qxe5 {[%clk 00:46:41]}
{[%emt 00:01:35]} 19. Qxe5 {[%clk 00:31:32]} {[%emt 00:08:10]} Rxe5 {[%clk
00:46:38]} {[%emt 00:00:33]} 20. Kf1 {[%clk 00:31:59]} {[%emt 00:00:03]} Re4
{[%clk 00:42:56]} {[%emt 00:04:11]} 21. Bg5 {[%clk 00:28:43]} {[%emt 00:03:47]}
f6 {[%clk 00:41:16]} {[%emt 00:02:10]} 22. Be3 {[%clk 00:27:01]} {[%emt
00:02:11]} Rxa4 {[%clk 00:41:18]} {[%emt 00:00:28]} 23. Rd1 {[%clk 00:26:40]}
{[%emt 00:00:52]} d4 {[%clk 00:37:08]} {[%emt 00:04:40]} 24. cxd4 {[%clk
00:26:31]} {[%emt 00:00:38]} cxd4 {[%clk 00:37:37]} {[%emt 00:00:02]} 25. Rxd4
{[%clk 00:26:31]} {[%emt 00:00:30]} Rxd4 {[%clk 00:35:25]} {[%emt 00:02:41]} 26.
Bxd4 {[%clk 00:26:38]} {[%emt 00:00:24]} b5 {[%clk 00:34:09]} {[%emt 00:01:46]}
27. Bc3 {[%clk 00:24:53]} {[%emt 00:02:15]} Re8 {[%clk 00:32:03]} {[%emt
00:02:27]} 28. Nc2 {[%clk 00:24:10]} {[%emt 00:01:21]} Kf7 {[%clk 00:32:02]}
{[%emt 00:00:31]} 29. Nd4 {[%clk 00:23:04]} {[%emt 00:01:37]} Rd8 {[%clk
00:25:30]} {[%emt 00:07:02]} 30. b4 {[%clk 00:19:42]} {[%emt 00:03:52]} Rc8
{[%clk 00:24:58]} {[%emt 00:01:01]} 31. Be1 {[%clk 00:17:50]} {[%emt 00:02:23]}
Rc4 {[%clk 00:23:53]} {[%emt 00:01:35]} 32. Nf5 {[%clk 00:17:35]} {[%emt
00:00:45]} Rc2 {[%clk 00:22:34]} {[%emt 00:01:48]} 33. h4 {[%clk 00:15:45]}
{[%emt 00:02:21]} g6 {[%clk 00:22:19]} {[%emt 00:00:45]} 34. Ne3 {[%clk
00:15:44]} {[%emt 00:00:31]} Rb2 {[%clk 00:20:30]} {[%emt 00:02:18]} 35. Bc3
{[%clk 00:14:50]} {[%emt 00:01:23]} Rb3 {[%clk 00:20:15]} {[%emt 00:00:46]} 36.
Bd2 {[%clk 00:15:12]} {[%emt 00:00:09]} Rd3 {[%clk 00:18:43]} {[%emt 00:02:01]}
37. Ke2 {[%clk 00:15:33]} {[%emt 00:00:10]} Rd4 {[%clk 00:19:12]} {[%emt
00:00:01]} 38. g3 {[%clk 00:15:36]} {[%emt 00:00:28]} Ke6 {[%clk 00:18:37]}
{[%emt 00:01:04]} 39. Nc2 {[%clk 00:12:52]} {[%emt 00:03:13]} Rd7 {[%clk
00:17:46]} {[%emt 00:01:21]} 40. Ne3 {[%clk 00:12:47]} {[%emt 00:00:36]} Rd4
{[%clk 00:18:00]} {[%emt 00:00:14]} 41. Bc3 {[%clk 00:12:56]} {[%emt 00:00:22]}
Rd7 {[%clk 00:18:28]} {[%emt 00:00:02]} 42. Nc2 {[%clk 00:09:56]} {[%emt
00:03:31]} f5 {[%clk 00:18:01]} {[%emt 00:00:57]} 43. Bd4 {[%clk 00:08:24]}
{[%emt 00:02:03]} Rf7 {[%clk 00:15:13]} {[%emt 00:03:16]} 44. Kd3 {[%clk
00:07:38]} {[%emt 00:01:16]} Kd5 {[%clk 00:08:24]} {[%emt 00:07:21]} 45. Ne3+
{[%clk 00:07:55]} {[%emt 00:00:13]} Kc6 {[%clk 00:07:56]} {[%emt 00:00:57]} 46.
Ng2 {[%clk 00:07:13]} {[%emt 00:01:12]} Rd7 {[%clk 00:06:56]} {[%emt 00:01:30]}
47. Nf4 {[%clk 00:07:25]} {[%emt 00:00:18]} Rd8 {[%clk 00:06:33]} {[%emt
00:00:53]} 48. h5 {[%clk 00:07:13]} {[%emt 00:00:42]} g5 {[%clk 00:06:34]}
{[%emt 00:00:28]} 49. Ne6 {[%clk 00:07:31]} {[%emt 00:00:13]} Rd6 {[%clk
00:05:28]} {[%emt 00:01:35]} 50. Nxg5 {[%clk 00:06:04]} {[%emt 00:01:58]} Rh6
{[%clk 00:05:57]} {[%emt 00:00:01]} 51. Be3 {[%clk 00:06:12]} {[%emt 00:00:21]}
Kd5 {[%clk 00:05:25]} {[%emt 00:01:03]} 52. Nh3 {[%clk 00:06:34]} {[%emt
00:00:07]} Rd6 {[%clk 00:05:01]} {[%emt 00:00:54]} 53. Bd4 {[%clk 00:06:37]}
{[%emt 00:00:28]} Rc6 {[%clk 00:04:49]} {[%emt 00:00:42]} 54. Nf4+ {[%clk
00:06:57]} {[%emt 00:00:10]} Kd6 {[%clk 00:05:04]} {[%emt 00:00:15]} 55. Ng2
{[%clk 00:05:23]} {[%emt 00:02:04]} Rc4 {[%clk 00:05:05]} {[%emt 00:00:28]} 56.
Bc3 {[%clk 00:05:19]} {[%emt 00:00:34]} Ke7 {[%clk 00:02:52]} {[%emt 00:02:44]}
57. Ne3 {[%clk 00:04:46]} {[%emt 00:01:02]} Rc6 {[%clk 00:02:10]} {[%emt
00:01:13]} 58. Nxf5+ {[%clk 00:05:10]} {[%emt 00:00:06]} Ke6 {[%clk 00:02:31]}
{[%emt 00:00:08]} 59. Nd4+ {[%clk 00:05:38]} {[%emt 00:00:02]} 1-0

[Event "The Kvibergspelen 2023"]
[Site "Kviberg Park Hotel & Conference, Krutvagen 2, Gothenburg, Sweden"]
[Date "2023.09.16"]
[Round "6.19"]
[White "Lundberg, Roland"]
[Black "Nordenbaek, Jan"]
[Result "0-1"]
[TimeControl "15 minutes + 5 seconds per move from move one (Round 1 - 4) / 90 minutes + 30 seconds per move from move one (Round 5 - 8)"]
[WhiteFideId "1710656"]
[BlackFideId "1401475"]
[WhiteElo "1930"]
[BlackElo "2163"]

1. Nf3 {[%clk 01:30:55]} {[%emt 00:00:05]} Nf6 {[%clk 01:30:34]} {[%emt
00:00:26]} 2. g3 {[%clk 01:31:18]} {[%emt 00:00:07]} g6 {[%clk 01:30:25]}
{[%emt 00:00:39]} 3. Bg2 {[%clk 01:31:39]} {[%emt 00:00:09]} Bg7 {[%clk
01:30:47]} {[%emt 00:00:08]} 4. c4 {[%clk 01:31:28]} {[%emt 00:00:41]} O-O
{[%clk 01:31:03]} {[%emt 00:00:14]} 5. O-O {[%clk 01:31:16]} {[%emt 00:00:42]}
c6 {[%clk 01:28:47]} {[%emt 00:02:46]} 6. d3 {[%clk 01:25:19]} {[%emt
00:06:28]} d5 {[%clk 01:27:08]} {[%emt 00:02:08]} 7. Nbd2 {[%clk 01:25:20]}
{[%emt 00:00:29]} a5 {[%clk 01:26:19]} {[%emt 00:01:20]} 8. Rb1 {[%clk
01:23:39]} {[%emt 00:02:11]} dxc4 {[%clk 01:23:02]} {[%emt 00:03:47]} 9. Nxc4
{[%clk 01:23:26]} {[%emt 00:00:42]} Nd5 {[%clk 01:20:50]} {[%emt 00:02:42]} 10.
a3 {[%clk 01:23:33]} {[%emt 00:00:23]} b5 {[%clk 01:19:06]} {[%emt 00:02:14]}
11. Ne3 {[%clk 01:23:37]} {[%emt 00:00:26]} e6 {[%clk 01:06:18]} {[%emt
00:13:19]} 12. Bd2 {[%clk 01:19:00]} {[%emt 00:05:07]} Bb7 {[%clk 01:03:22]}
{[%emt 00:03:26]} 13. Qc1 {[%clk 01:17:28]} {[%emt 00:02:01]} Re8 {[%clk
01:02:07]} {[%emt 00:01:45]} 14. Rd1 {[%clk 01:09:37]} {[%emt 00:08:21]} Nd7
{[%clk 00:57:39]} {[%emt 00:04:58]} 15. d4 {[%clk 01:02:53]} {[%emt 00:07:15]}
Rc8 {[%clk 00:56:50]} {[%emt 00:01:18]} 16. Ng4 {[%emt 00:10:38]} c5 17. Bh6
{[%clk 00:51:00]} {[%emt 00:04:07]} cxd4 {[%clk 00:50:11]} {[%emt 00:05:48]} 18.
Qd2 {[%clk 00:51:23]} {[%emt 00:00:06]} f5 {[%clk 00:49:35]} {[%emt 00:01:05]}
19. Bg5 {[%clk 00:43:38]} {[%emt 00:08:15]} Qb6 {[%clk 00:49:17]} {[%emt
00:00:49]} 20. Nh6+ {[%clk 00:42:46]} {[%emt 00:01:22]} Bxh6 {[%clk 00:48:58]}
{[%emt 00:00:49]} 21. Bxh6 {[%clk 00:43:07]} {[%emt 00:00:09]} e5 {[%clk
00:48:48]} {[%emt 00:00:39]} 22. Nh4 {[%clk 00:40:13]} {[%emt 00:03:25]} Nc5
{[%clk 00:36:10]} {[%emt 00:13:08]} 23. b4 {[%clk 00:32:47]} {[%emt 00:07:56]}
axb4 {[%clk 00:36:12]} {[%emt 00:00:28]} 24. Bxd5+ {[%clk 00:32:47]} {[%emt
00:00:30]} Bxd5 {[%clk 00:36:26]} {[%emt 00:00:16]} 25. Rxb4 {[%clk 00:32:59]}
{[%emt 00:00:19]} Bc4 {[%emt 00:12:51]} 26. Qb2 {[%clk 00:24:02]} {[%emt
00:01:51]} Na6 {[%emt 00:10:15]} 27. e3 {[%emt 00:01:25]} Nxb4 {[%clk
00:30:20]} {[%emt 00:00:21]} 28. axb4 {[%clk 00:15:10]} {[%emt 00:00:11]} d3
{[%clk 00:26:15]} {[%emt 00:04:35]} 29. Nf3 {[%clk 00:14:32]} {[%emt 00:01:08]}
Qe6 {[%clk 00:25:58]} {[%emt 00:00:48]} 30. Ra1 {[%clk 00:09:20]} {[%emt
00:05:43]} Ra8 {[%clk 00:22:59]} {[%emt 00:03:27]} 31. Ra5 {[%clk 00:06:28]}
{[%emt 00:03:22]} Bd5 {[%clk 00:19:07]} {[%emt 00:04:22]} 32. Ng5 {[%clk
00:03:42]} {[%emt 00:03:16]} Qc6 {[%clk 00:19:11]} {[%emt 00:00:26]} 33. Qa1
{[%clk 00:02:02]} {[%emt 00:02:11]} d2 {[%clk 00:19:15]} {[%emt 00:00:25]} 0-1